fUSD/lending_fUSD_20240107
["ID","MTS","AMOUNT","RATE_DAILY","PERIOD"]
[310638801,1704603049441,-3625.88071639,0.00022896,2]
[310638802,1704603049451,-685.14516987,0.00022896,2]
[310638803,1704603049460,-253.01214461,0.00022896,2]
[310638804,1704603049469,-155.63175262,0.00022896,2]
[310638805,1704603049478,-4731.65760839,0.00022896,2]
[310638806,1704603049487,-260.18395373,0.00022896,2]
[310638807,1704603049496,-159.76246466,0.00022896,2]
[310638808,1704603049505,-158.07630047,0.00022896,2]
[310638809,1704603049514,-306.35119781,0.00022896,2]
[310638810,1704603049523,-942.48901101,0.00022896,2]
[310638811,1704603049532,-305.03468663,0.00022896,2]
[310638812,1704603049541,-337.75590855,0.00022896,2]
[310638813,1704603049552,-263.62340877,0.00022896,2]
[310638814,1704603049561,-3942.2508466,0.00022896,2]
[310638815,1704603049570,-555.25353921,0.00022896,2]
[310638816,1704603049579,-2173.6020267,0.00022897,2]
[310638817,1704603049588,-500.0,0.00022897,2]
[310638818,1704603049598,-500.0,0.00022897,2]
[310638819,1704603049607,-500.0,0.00022897,2]
[310638820,1704603049617,-500.0,0.00022897,2]
[310638821,1704603049626,-492.89103658,0.00022897,2]
[310638822,1704603049635,-500.0,0.00022897,2]
[310638823,1704603049644,-500.0,0.00022897,2]
[310638824,1704603049653,-500.0,0.00022897,2]
[310638825,1704603049662,-500.0,0.00022897,2]
[310638826,1704603049671,-500.0,0.00022897,2]
[310638827,1704603049681,-500.0,0.00022897,2]
[310638828,1704603049690,-554.36,0.00022897,2]
[310638829,1704603049699,-500.0,0.00022897,2]
[310638830,1704603049708,-500.0,0.00022897,2]
[310638831,1704603049718,-500.0,0.00022897,2]
[310638832,1704603049727,-500.0,0.00022897,2]
[310638833,1704603049736,-500.0,0.00022897,2]
[310638834,1704603049746,-500.0,0.00022897,2]
[310638835,1704603049755,-500.0,0.00022897,2]
[310638836,1704603049765,-500.0,0.00022897,2]
[310638837,1704603049774,-500.0,0.00022897,2]
[310638838,1704603049783,-500.0,0.00022897,2]
[310638839,1704603049793,-500.0,0.00022897,2]
[310638840,1704603049802,-3493.12,0.00022897,2]
[310638841,1704603049812,-500.0,0.00022897,2]
[310638842,1704603049821,-826.53,0.00022897,2]
[310638843,1704603049830,-353.28,0.00022897,2]
[310638844,1704603049839,-500.0,0.00022897,2]
[310638845,1704603049848,-469.1,0.00022897,2]
[310638846,1704603049857,-500.0,0.00022897,2]
[310638847,1704603049866,-518.3394005,0.00022897,2]
[310638848,1704603049875,-500.0,0.00022897,2]
[310638849,1704603049884,-756.32,0.00022897,2]
[310638850,1704603049893,-500.0,0.00022897,2]
[310638851,1704603049902,-500.0,0.00022897,2]
[310638852,1704603049911,-178.0,0.00022897,2]
[310638853,1704603049920,-500.0,0.00022897,2]
[310638854,1704603049930,-500.0,0.00022897,2]
[310638855,1704603049940,-500.0,0.00022897,2]
[310638856,1704603049950,-177.02629363,0.00022897,2]
[310638857,1704603049961,-500.0,0.00022897,2]
[310638858,1704603049970,-500.0,0.00022897,2]
[310638859,1704603049980,-500.0,0.00022897,2]
[310638860,1704603049989,-500.0,0.00022897,2]
[310638861,1704603049999,-500.0,0.00022897,2]
[310638862,1704603050008,-355.30130923,0.00022897,2]
[310638863,1704603050018,-500.0,0.00022897,2]
[310638864,1704603050027,-883.04,0.00022897,2]
[310638865,1704603050037,-883.04,0.00022897,2]
[310638866,1704603050047,-500.0,0.00022897,2]
[310638867,1704603050057,-1644.15,0.00022897,2]
[310638868,1704603050066,-500.0,0.00022897,2]
[310638869,1704603050076,-500.0,0.00022897,2]
[310638870,1704603050086,-500.0,0.00022897,2]
[310638871,1704603050095,-500.0,0.00022897,2]
[310638872,1704603050104,-1671.24,0.00022897,2]
[310638873,1704603050113,-500.0,0.00022897,2]
[310638874,1704603050123,-1671.24,0.00022897,2]
[310638875,1704603050132,-500.0,0.00022897,2]
[310638876,1704603050142,-500.0,0.00022897,2]
[310638877,1704603050151,-500.0,0.00022897,2]
[310638878,1704603050161,-500.0,0.00022897,2]
[310638879,1704603050170,-500.0,0.00022897,2]
[310638880,1704603050180,-168.75,0.00022897,2]
[310638881,1704603050189,-500.0,0.00022897,2]
[310638882,1704603050198,-500.0,0.00022897,2]
[310638883,1704603050207,-500.0,0.00022897,2]
[310638884,1704603050217,-542.82916388,0.00022897,2]
[310638885,1704603050226,-500.0,0.00022897,2]
[310638886,1704603050236,-500.0,0.00022897,2]
[310638887,1704603050247,-1602.13,0.00022897,2]
[310638888,1704603050256,-500.0,0.00022897,2]
[310638889,1704603050266,-784.4,0.00022897,2]
[310638890,1704603050275,-784.4,0.00022897,2]
[310638891,1704603050286,-500.0,0.00022897,2]
[310638892,1704603050295,-500.0,0.00022897,2]
[310638893,1704603050304,-500.0,0.00022897,2]
[310638894,1704603050314,-500.0,0.00022897,2]
[310638895,1704603050325,-500.0,0.00022897,2]
[310638896,1704603050334,-616.86,0.00022897,2]
[310638897,1704603050344,-433.24,0.00022897,2]
[310638898,1704603050353,-500.0,0.00022897,2]
[310638899,1704603050363,-500.0,0.00022897,2]
[310638900,1704603050373,-500.0,0.00022897,2]
[310638901,1704603050382,-500.0,0.00022897,2]
[310638902,1704603050391,-500.0,0.00022897,2]
[310638903,1704603050401,-500.0,0.00022897,2]
[310638904,1704603050411,-300.0,0.00022897,2]
[310638905,1704603050420,-565.11,0.00022897,2]
[310638906,1704603050430,-565.11,0.00022897,2]
[310638907,1704603050439,-300.0,0.00022897,2]
[310638908,1704603050449,-19697.06,0.00022897,2]
[310638909,1704603050459,-300.0,0.00022897,2]
[310638910,1704603050468,-300.0,0.00022897,2]
[310638911,1704603050478,-1222.11,0.00022897,2]
[310638912,1704603050488,-1222.11,0.00022897,2]
[310638913,1704603050498,-500.0,0.00022897,2]
[310638914,1704603050508,-500.0,0.00022897,2]
[310638915,1704603050518,-341.97169482,0.00022897,2]
[310638916,1704603050528,-500.0,0.00022897,2]
[310638917,1704603050537,-500.0,0.00022897,2]
[310638918,1704603050549,-419.72,0.00022897,2]
[310638919,1704603050560,-535.4,0.00022897,2]
[310638920,1704603050570,-535.4,0.00022897,2]
[310638921,1704603050579,-500.0,0.00022897,2]
[310638922,1704603050589,-75.96933936,0.00022897,2]
[310638923,1704603051185,-278.24112876,0.00022897,2]
[310638925,1704603068502,330.0,0.00021745,2]
[310638926,1704603071897,155.31624059,0.00020606,2]
[310638928,1704603093417,319.11247492,0.00022,2]
[310638930,1704603100265,544.64,0.00021989,2]
[310638931,1704603114321,2924.24823141,6.94e-05,2]
[310638933,1704603125718,402.24436109,0.0002,2]
[310638934,1704603129992,302.41,0.0002001,2]
[310638935,1704603130185,302.41,0.00022274,2]
[310638939,1704603190090,2500.0,0.000229,7]
[310638941,1704603205164,162.06,0.00021904,2]
[310638945,1704603271070,136694.2584994,0.000222,2]
[310638951,1704603350326,244.46,0.00021894,2]
[310638952,1704603350788,206.88,0.00021894,2]
[310638953,1704603355505,150.87,0.00021889,2]
[310638955,1704603368844,5681.31012024,0.00022491,2]
[310638956,1704603369787,151.0,0.00029945,120]
[310638961,1704603451505,326.27996716,0.00022491,2]
[310638964,1704603484099,203.0,0.00022405,2]
[310638971,1704603583479,272.16,0.0001998,2]
[310638972,1704603583677,272.16,0.00022244,2]
[310638974,1704603600278,564.28,0.0002189,2]
[310638983,1704603737046,3184.00180731,0.00021981,2]
[310638984,1704603739053,727.8838217,0.00021,2]
[310638986,1704603747670,219.90355198,0.00021999,2]
[310638987,1704603755022,2280.83775458,0.00021981,2]
[310638988,1704603757042,172.86895762,0.00021,2]
[310638989,1704603760870,3039.738507,0.00022379,2]
[310638991,1704603775925,153.53,0.00021908,2]
[310638993,1704603796575,277.41,0.00021908,2]
[310638995,1704603801030,633.84,0.00021908,2]
[310638997,1704603823136,1500.0,0.000224,2]
[310638998,1704603823701,1500.0,0.000219,2]
[310639007,1704603957476,150.0,0.00022474,2]
[310639008,1704603960297,160.48,0.0002211,2]
[310639011,1704604006436,336.57,0.0001998,2]
[310639012,1704604006631,336.57,0.00022244,2]
[310639014,1704604022428,548.57,0.00021898,2]
[310639020,1704604078264,1396.76138032,0.00022467,2]
[310639026,1704604166220,175.02,0.00021907,2]
[310639031,1704604201985,166.74,0.00021896,2]
[310639035,1704604215313,198.7,0.00021905,2]
[310639044,1704604232477,-282.97818772,0.00022496,2]
[310639045,1704604232488,-158.08945214,0.00022497,2]
[310639046,1704604232498,-1527.78295755,0.00022499,2]
[310639047,1704604232520,-613.03875595,0.00022499,2]
[310639048,1704604232530,-360.95310763,0.000225,2]
[310639049,1704604232540,-205.4582,0.00022786,2]
[310639050,1704604232550,-500.0,0.00022792,2]
[310639051,1704604232559,-131.4435782,0.00022792,2]
[310639052,1704604232571,-121.68306092,0.00022792,2]
[310639053,1704604232580,-500.0,0.00022792,2]
[310639055,1704604232590,-150.0,0.00022795,2]
[310639057,1704604232599,-165.4340749,0.00022796,2]
[310639075,1704604240521,-3256.2397251,0.00022796,2]
[310639076,1704604240531,-167.22019686,0.00022799,2]
[310639077,1704604240540,-3252.0,0.000228,2]
[310639078,1704604240549,-194.16812795,0.000228,2]
[310639079,1704604240558,-154.34358329,0.000228,2]
[310639080,1704604240568,-1844.24672117,0.00022847,3]
[310639081,1704604240576,-163.88045012,0.00022847,2]
[310639082,1704604240589,-871.18056411,0.00022847,2]
[310639083,1704604240600,-317.93898577,0.00022847,2]
[310639084,1704604240609,-308.20399976,0.00022847,2]
[310639085,1704604240621,-634.79600024,0.00022847,2]
[310639086,1704604240630,-1853.751,0.00022847,2]
[310639087,1704604240639,-834.0,0.00022847,2]
[310639088,1704604240648,-1234.0,0.00022847,2]
[310639089,1704604240657,-1254.0,0.00022847,2]
[310639090,1704604240666,-272.073,0.00022847,2]
[310639091,1704604240675,-1928.0,0.00022847,2]
[310639092,1704604240685,-596.221,0.00022847,2]
[310639093,1704604240695,-1139.0,0.00022847,2]
[310639094,1704604240705,-318.0,0.00022847,2]
[310639095,1704604240716,-500.0,0.00022886,2]
[310639096,1704604240725,-160.0,0.00022886,2]
[310639097,1704604240734,-277.41,0.00022886,2]
[310639099,1704604240752,-500.0,0.00022891,2]
[310639101,1704604240764,-164.44902619,0.00022894,2]
[310639103,1704604240775,-1439.59427958,0.00022895,2]
[310639104,1704604240784,-180.14019912,0.00022896,2]
[310639105,1704604240795,-797.50879614,0.00022896,2]
[310639106,1704604240804,-822.26972217,0.00022896,2]
[310639107,1704604240814,-3288.57428281,0.00022896,2]
[310639108,1704604240824,-3667.31034757,0.00022896,2]
[310639109,1704604240833,-314.16,0.00022897,2]
[310639110,1704604240842,-500.0,0.00022897,2]
[310639111,1704604240853,-500.0,0.00022897,2]
[310639112,1704604240864,-500.0,0.00022897,2]
[310639113,1704604240874,-500.0,0.00022897,2]
[310639114,1704604240883,-364.03672358,0.00022897,2]
[310639115,1704604240893,-500.0,0.00022897,2]
[310639116,1704604240903,-500.0,0.00022897,2]
[310639118,1704604240912,-566.14464219,0.00022897,2]
[310639119,1704604240921,-500.0,0.00022897,2]
[310639121,1704604240930,-547.15046816,0.00022897,2]
[310639122,1704604240940,-500.0,0.00022897,2]
[310639123,1704604240949,-500.0,0.00022897,2]
[310639124,1704604240959,-330.0,0.00022897,2]
[310639125,1704604240969,-500.0,0.00022897,2]
[310639126,1704604240978,-500.0,0.00022897,2]
[310639127,1704604240988,-500.0,0.00022897,2]
[310639128,1704604240997,-500.0,0.00022897,2]
[310639129,1704604241008,-500.0,0.00022897,2]
[310639130,1704604241017,-2910.93,0.00022897,2]
[310639131,1704604241027,-688.78,0.00022897,2]
[310639132,1704604241037,-500.0,0.00022897,2]
[310639133,1704604241046,-255.98421408,0.00022897,2]
[310639134,1704604241056,-577.43,0.00022897,2]
[310639135,1704604241066,-500.0,0.00022897,2]
[310639136,1704604241075,-500.0,0.00022897,2]
[310639137,1704604241085,-500.0,0.00022897,2]
[310639138,1704604241094,-699.07,0.00022897,2]
[310639139,1704604241104,-500.0,0.00022897,2]
[310639140,1704604241113,-500.0,0.00022897,2]
[310639141,1704604241123,-500.0,0.00022897,2]
[310639142,1704604241133,-500.0,0.00022897,2]
[310639143,1704604241142,-321.27,0.00022897,2]
[310639144,1704604241152,-500.0,0.00022897,2]
[310639145,1704604241161,-500.0,0.00022897,2]
[310639146,1704604241171,-1341.39,0.00022897,2]
[310639147,1704604241180,-500.0,0.00022897,2]
[310639148,1704604241190,-1370.12,0.00022897,2]
[310639149,1704604241199,-500.0,0.00022897,2]
[310639150,1704604241208,-500.0,0.00022897,2]
[310639151,1704604241218,-500.0,0.00022897,2]
[310639152,1704604241227,-500.0,0.00022897,2]
[310639153,1704604241237,-500.0,0.00022897,2]
[310639154,1704604241250,-500.0,0.00022897,2]
[310639155,1704604241259,-500.0,0.00022897,2]
[310639156,1704604241269,-500.0,0.00022897,2]
[310639157,1704604241279,-500.0,0.00022897,2]
[310639158,1704604241288,-500.0,0.00022897,2]
[310639159,1704604241298,-1335.1,0.00022897,2]
[310639160,1704604241308,-500.0,0.00022897,2]
[310639161,1704604241318,-500.0,0.00022897,2]
[310639162,1704604241328,-500.0,0.00022897,2]
[310639163,1704604241337,-500.0,0.00022897,2]
[310639164,1704604241347,-500.0,0.00022897,2]
[310639165,1704604241356,-514.05,0.00022897,2]
[310639166,1704604241365,-500.0,0.00022897,2]
[310639167,1704604241376,-500.0,0.00022897,2]
[310639168,1704604241385,-169.94722716,0.00022897,2]
[310639169,1704604241394,-500.0,0.00022897,2]
[310639170,1704604241403,-2347.78915994,0.00022897,2]
[310639171,1704604241425,-373.94989442,0.00022897,2]
[310639172,1704604241437,-392.92178369,0.00022897,2]
[310639173,1704604241453,-2934.33875981,0.00022897,2]
[310639174,1704604241465,-1167.65117385,0.00022897,2]
[310639175,1704604241477,-2924.88933596,0.00022897,2]
[310639176,1704604241489,-662.73390958,0.00022897,2]
[310639177,1704604241501,-5609.94598275,0.00022897,2]
[310639178,1704604241510,-500.0,0.00022897,2]
[310639179,1704604241519,-317.26642249,0.00022897,2]
[310639180,1704604241906,-182.73357751,0.00022897,2]
[310639181,1704604241915,-229.1667556,0.00022897,2]
[310639182,1704604241927,-270.8332444,0.00022897,2]
[310639183,1704604241937,-500.0,0.00022897,2]
[310639184,1704604241946,-749.85,0.00022897,2]
[310639185,1704604241956,-1262.64,0.00022897,2]
[310639186,1704604241965,-8003.92,0.00022897,2]
[310639187,1704604241975,-500.0,0.00022897,2]
[310639188,1704604241985,-500.0,0.00022897,2]
[310639189,1704604241995,-368.01,0.00022897,2]
[310639190,1704604242005,-500.0,0.00022897,2]
[310639191,1704604242014,-776.49,0.00022897,2]
[310639192,1704604242024,-794.71,0.00022897,2]
[310639193,1704604242033,-500.0,0.00022897,2]
[310639194,1704604242043,-500.0,0.00022897,2]
[310639195,1704604242053,-699.15,0.00022897,2]
[310639196,1704604242062,-500.0,0.00022897,2]
[310639197,1704604242072,-500.0,0.00022897,2]
[310639198,1704604242081,-500.0,0.00022897,2]
[310639199,1704604242092,-500.0,0.00022897,2]
[310639200,1704604242104,-500.0,0.00022897,2]
[310639201,1704604242114,-1901.02024295,0.00022898,3]
[310639202,1704604242123,-300.31653831,0.00022898,2]
[310639203,1704604242133,-500.0,0.00022898,2]
[310639204,1704604242143,-500.0,0.00022898,2]
[310639205,1704604242153,-500.0,0.00022898,2]
[310639206,1704604242162,-406.5848153,0.00022898,2]
[310639207,1704604242171,-500.0,0.00022898,2]
[310639208,1704604242180,-202.24364919,0.00022898,2]
[310639220,1704604243544,-733.92,0.00022796,2]
[310639221,1704604243558,-297.75635081,0.00022898,2]
[310639222,1704604243569,-500.0,0.00022898,2]
[310639223,1704604243582,-500.0,0.00022898,2]
[310639224,1704604243592,-500.0,0.00022898,2]
[310639225,1704604243603,-500.0,0.00022898,2]
[310639226,1704604243614,-571.04364919,0.00022898,2]
[310639229,1704604246378,-768.06384375,0.00022898,2]
[310639230,1704604246487,-1571.82250706,0.00022898,2]
[310639231,1704604246497,-688.78,0.00022898,2]
[310639232,1704604246506,-500.0,0.00022898,2]
[310639233,1704604246515,-500.0,0.00022898,2]
[310639234,1704604246525,-500.0,0.00022898,2]
[310639235,1704604246534,-500.0,0.00022898,2]
[310639236,1704604246546,-699.07,0.00022898,2]
[310639237,1704604246555,-500.0,0.00022898,2]
[310639238,1704604246565,-500.0,0.00022898,2]
[310639239,1704604246577,-500.0,0.00022898,2]
[310639240,1704604246588,-500.0,0.00022898,2]
[310639241,1704604246599,-500.0,0.00022898,2]
[310639242,1704604246609,-500.0,0.00022898,2]
[310639243,1704604246621,-745.26784131,0.00022898,2]
[310639244,1704604246636,-333.231228,0.00022898,2]
[310639245,1704604246650,-262.89093069,0.00022898,2]
[310639246,1704604246661,-1370.12,0.00022898,2]
[310639247,1704604246672,-500.0,0.00022898,2]
[310639248,1704604246682,-500.0,0.00022898,2]
[310639249,1704604246690,-500.0,0.00022898,2]
[310639250,1704604246700,-500.0,0.00022898,2]
[310639251,1704604246709,-500.0,0.00022898,2]
[310639252,1704604246719,-500.0,0.00022898,2]
[310639253,1704604246729,-500.0,0.00022898,2]
[310639254,1704604246738,-500.0,0.00022898,2]
[310639255,1704604246748,-500.0,0.00022898,2]
[310639256,1704604246758,-500.0,0.00022898,2]
[310639257,1704604246767,-1335.1,0.00022898,2]
[310639258,1704604246777,-500.0,0.00022898,2]
[310639259,1704604246786,-500.0,0.00022898,2]
[310639260,1704604246796,-500.0,0.00022898,2]
[310639261,1704604246805,-620.98,0.00022898,2]
[310639262,1704604246815,-370.85,0.00022898,2]
[310639263,1704604246825,-500.0,0.00022898,2]
[310639264,1704604246835,-514.05,0.00022898,2]
[310639265,1704604246845,-500.0,0.00022898,2]
[310639266,1704604246854,-500.0,0.00022898,2]
[310639267,1704604246863,-500.0,0.00022898,2]
[310639268,1704604246872,-315.55529255,0.00022898,2]
[310639271,1704604283123,240.42,0.00021998,2]
[310639281,1704604442877,302.91,0.00020022,2]
[310639282,1704604443311,302.91,0.00022285,2]
[310639287,1704604524463,561.14,0.00021933,2]
[310639289,1704604536004,196.69,0.00021933,10]
[310639290,1704604536221,196.69,0.00024082,10]
[310639298,1704604659164,150.44,0.00021929,2]
[310639299,1704604659374,150.44,0.00022477,2]
[310639301,1704604687589,307.58254505,0.000192,2]
[310639307,1704604789971,224.39,0.00021925,2]
[310639319,1704604980512,472.6804571,0.00021,2]
[310639324,1704605068575,551.08,0.00021871,2]
[310639326,1704605087803,272.61,0.00019953,2]
[310639327,1704605088189,272.61,0.00022217,2]
[310639336,1704605217716,209.43,0.00021871,2]
[310639340,1704605284204,204.0,0.00021582,2]
[310639362,1704605431692,-696.21438607,0.00022665,2]
[310639363,1704605431702,-150.0,0.00022666,2]
[310639364,1704605431712,-727.09,0.00022667,2]
[310639365,1704605431722,-716.57,0.00022667,2]
[310639366,1704605431732,-735.35,0.00022667,2]
[310639367,1704605431742,-726.4,0.00022667,2]
[310639368,1704605431752,-269.67400351,0.00022667,2]
[310639380,1704605439104,-449.08599649,0.00022667,2]
[310639381,1704605439116,-710.58,0.00022667,2]
[310639382,1704605439125,-732.39,0.00022667,2]
[310639383,1704605439136,-223.3033429,0.00022668,4]
[310639384,1704605439145,-158.08945214,0.00022699,2]
[310639385,1704605439154,-22554.48592571,0.00022798,2]
[310639386,1704605439166,-69319.42867429,0.00022798,2]
[310639387,1704605439175,-1000.0,0.00022799,2]
[310639388,1704605439185,-9944.48057554,0.00022799,2]
[310639405,1704605440010,-1000.0,0.00022799,2]
[310639407,1704605440022,-950.63619471,0.00022799,2]
[310639408,1704605440067,-776.99749995,0.00022799,2]
[310639409,1704605440229,-2470.88059792,0.00022799,2]
[310639410,1704605442506,-664.00152642,0.00022799,2]
[310639411,1704605442665,-1412.18415497,0.00022799,2]
[310639412,1704605442719,-12780.80945049,0.00022799,2]
[310639413,1704605442731,-5722.52,0.00022799,2]
[310639414,1704605442740,-158.08945214,0.00022799,2]
[310639415,1704605442750,-366.16218034,0.00022799,2]
[310639416,1704605442759,-734.67,0.00022801,2]
[310639417,1704605442768,-720.53,0.00022842,2]
[310639418,1704605442777,-226.09837936,0.00022848,2]
[310639419,1704605442786,-209.43,0.00022849,2]
[310639420,1704605442794,-499.99,0.0002285,2]
[310639421,1704605442803,-226.09837925,0.00022853,2]
[310639422,1704605442812,-226.09837925,0.00022857,2]
[310639423,1704605442821,-226.09837925,0.00022862,2]
[310639424,1704605442830,-226.09837925,0.00022867,2]
[310639425,1704605442839,-226.09837925,0.00022872,2]
[310639426,1704605442848,-226.09837925,0.00022876,2]
[310639427,1704605442857,-226.09837925,0.00022881,2]
[310639428,1704605442866,-1247.74318045,0.00022886,3]
[310639429,1704605442875,-226.09837925,0.00022886,2]
[310639431,1704605442885,-226.09837925,0.00022891,2]
[310639434,1704605442895,-226.09837925,0.00022895,2]
[310639437,1704605442904,-712.91,0.00022897,2]
[310639439,1704605442913,-1966.42427221,0.00022897,2]
[310639441,1704605442922,-3772.75094642,0.00022897,2]
[310639443,1704605442931,-3274.15040525,0.00022897,2]
[310639444,1704605442940,-867.43631562,0.00022897,4]
[310639445,1704605442950,-536.24767748,0.00022897,2]
[310639446,1704605442960,-155.65304149,0.00022897,2]
[310639447,1704605442970,-683.8398576,0.00022897,2]
[310639448,1704605442979,-2012.33771706,0.00022897,2]
[310639449,1704605442988,-1229.07988028,0.00022897,2]
[310639450,1704605442997,-155.58412624,0.00022897,2]
[310639451,1704605443008,-155.87157058,0.00022897,2]
[310639452,1704605443016,-201.75556259,0.00022897,2]
[310639453,1704605443027,-547.38598853,0.00022897,2]
[310639454,1704605443037,-182.69630563,0.00022897,2]
[310639455,1704605443046,-186.05142255,0.00022897,2]
[310639456,1704605443055,-500.0,0.00022897,2]
[310639457,1704605443065,-1334.45,0.00022897,2]
[310639458,1704605443075,-500.0,0.00022897,2]
[310639459,1704605443084,-500.0,0.00022897,2]
[310639460,1704605443093,-500.0,0.00022897,2]
[310639461,1704605443102,-500.0,0.00022897,2]
[310639462,1704605443112,-500.0,0.00022897,2]
[310639463,1704605443121,-500.0,0.00022897,2]
[310639464,1704605443130,-500.0,0.00022897,2]
[310639465,1704605443142,-500.0,0.00022897,2]
[310639466,1704605443151,-500.0,0.00022897,2]
[310639467,1704605443160,-500.0,0.00022897,2]
[310639468,1704605443169,-967.5,0.00022897,2]
[310639469,1704605443179,-500.0,0.00022897,2]
[310639470,1704605443188,-500.0,0.00022897,2]
[310639471,1704605443198,-500.0,0.00022897,2]
[310639472,1704605443208,-500.0,0.00022897,2]
[310639473,1704605443217,-500.0,0.00022897,2]
[310639474,1704605443227,-1210.03,0.00022897,2]
[310639475,1704605443236,-500.0,0.00022897,2]
[310639476,1704605443246,-7670.42,0.00022897,2]
[310639477,1704605443256,-500.0,0.00022897,2]
[310639478,1704605443267,-6083.62,0.00022897,2]
[310639479,1704605443276,-500.0,0.00022897,2]
[310639480,1704605443286,-500.0,0.00022897,2]
[310639481,1704605443296,-500.0,0.00022897,2]
[310639482,1704605443305,-500.0,0.00022897,2]
[310639483,1704605443315,-2668.36,0.00022897,2]
[310639484,1704605443324,-481.90191519,0.00022898,2]
[310639485,1704605445431,-470.90232199,0.00022897,2]
[310639490,1704605445488,-29.09767801,0.00022897,2]
[310639492,1704605445498,-18.09808481,0.00022898,2]
[310639495,1704605445507,-180.70694379,0.00022898,2]
[310639496,1704605445516,-500.0,0.00022898,2]
[310639498,1704605445525,-165.90836277,0.00022898,2]
[310639501,1704605445537,-334.09163723,0.00022898,2]
[310639502,1704605445546,-39.32034462,0.00022898,2]
[310639503,1704605445558,-460.67965538,0.00022898,2]
[310639504,1704605445567,-500.0,0.00022898,2]
[310639505,1704605445576,-273.48,0.00022898,2]
[310639506,1704605445585,-604.30577351,0.00022898,2]
[310639507,1704605445594,-500.0,0.00022898,2]
[310639508,1704605445603,-500.0,0.00022898,2]
[310639509,1704605445622,-23.12373221,0.00022898,2]
[310639510,1704605445637,-346.27282667,0.00022898,2]
[310639511,1704605445662,-130.60344112,0.00022898,2]
[310639512,1704605445671,-500.0,0.00022898,2]
[310639513,1704605445680,-266.86901462,0.00022898,2]
[310639514,1704605445692,-233.13098538,0.00022898,2]
[310639515,1704605445701,-500.0,0.00022898,2]
[310639516,1704605445710,-500.0,0.00022898,2]
[310639517,1704605445720,-81.39991108,0.00022898,2]
[310639518,1704605445732,-418.60008892,0.00022898,2]
[310639519,1704605445742,-500.0,0.00022898,2]
[310639520,1704605445751,-3331.3,0.00022898,2]
[310639521,1704605445761,-3331.3,0.00022898,2]
[310639522,1704605445770,-500.0,0.00022898,2]
[310639523,1704605445779,-229.72207425,0.00022898,2]
[310639524,1704605445788,-500.0,0.00022898,2]
[310639525,1704605445798,-500.0,0.00022898,2]
[310639526,1704605445807,-500.0,0.00022898,2]
[310639527,1704605445816,-457.91,0.00022898,2]
[310639528,1704605445826,-500.0,0.00022898,2]
[310639529,1704605445835,-500.0,0.00022898,2]
[310639530,1704605445844,-640.82,0.00022898,2]
[310639531,1704605445853,-500.0,0.00022898,2]
[310639532,1704605445862,-588.6,0.00022898,2]
[310639533,1704605445871,-1229.6,0.00022898,2]
[310639534,1704605445881,-549.43161721,0.00022898,2]
[310639535,1704605445891,-500.0,0.00022898,2]
[310639536,1704605445900,-500.0,0.00022898,2]
[310639537,1704605445910,-1255.95,0.00022898,2]
[310639538,1704605445919,-500.0,0.00022898,2]
[310639539,1704605445928,-429.11,0.00022898,2]